Cogmind - Beta 16 *** ADVENTURER MODE // 2025.11.18 @ 01:43:21 Player: oshi0ne1 Result: Destroyed by Y-45 Defender with Beam Rifle Performance ------------- Evolutions (2) 1000 Regions Visited (7) 1400 Robots Destroyed (74) 370 Value Destroyed (2343) 2343 Prototype IDs (23) 460 Alien Tech Used (0) 0 Bonus (1724) 1724 TOTAL SCORE: 7297 Bonus ------- High Alert Combat Kills 224 Entered Garrisons 200 Used RIF Installer 1000 Aligned with FarCom 300 Cogmind --------- Core Integrity 0/550 Matter 130/300 Energy 100/100 System Corruption 3% Temperature Warm (141) Movement Core (450) Ox8 Location -8/Materials Parts ------- > --- POWER (2) -------- (None) > --- PROPULSION (2) --- (None) > --- UTILITY (5) ------ Large Storage Unit Trap Scanner Improved Sensor Array Improved Signal Interpreter > --- WEAPON (2) ------- Longsword +1 > --- INVENTORY (15) --- Light Nuclear Core Improved Treads Medium Storage Unit Sensor Array Improved Signal Interpreter Targeting Computer Particle Gun Assault Cannon Mini Grenade Launcher Datajack Peak State ------------ > --- POWER ------------ Light Nuclear Core Light Nuclear Core > --- PROPULSION ------- Light Treads Light Treads > --- UTILITY ---------- Medium Storage Unit Improved Sensor Array Improved Signal Interpreter Terrain Scan Processor Hardened Medium Armor Plating > --- WEAPON ----------- Assault Cannon Longsword +1 > --- INVENTORY -------- Light Nuclear Core Light Treads Improved Treads Wheel Compact Wheel Particle Gun Ion Cannon Heavy Assault Rifle Assault Cannon Mini Grenade Launcher [Rating: 33] Favorites ----------- Power Light Nuclear Core Engine Light Ion Engine Power Core Light Nuclear Core Propulsion Light Treads Treads Light Treads Utility Improved Signal Interpreter Device Improved Sensor Array Storage Small Storage Unit Processor Improved Signal Interpreter Hackware Hacking Suite Protection Hardened Medium Armor Plating Weapon Assault Rifle Energy Gun Particle Gun Energy Cannon Ion Cannon Ballistic Gun Assault Rifle Ballistic Cannon Assault Cannon Launcher Mini Grenade Launcher Impact Weapon Hammer Slashing Weapon Longsword +1 Special Melee Weapon Datajack Build | -11 -10 -10 -10 -9 -8 -8 -8 ------- Run | Yrd Mat Min Exi Min Mat Gar Mat Slots Evolved 4 | . . . . . 4 . . Power 1 | . . . . . 1 . . Propulsion . | . . . . . . . . Utility 3 | . . . . . 3 . . Weapon . | . . . . . . . . Parts Attached 63 | 7 3 . 4 4 26 9 10 Power 13 | 1 . . . 1 5 4 2 Engine 6 | 1 . . . 1 4 . . Core 7 | . . . . . 1 4 2 Reactor . | . . . . . . . . Propulsion 13 | 2 . . . 1 7 3 . Treads 13 | 2 . . . 1 7 3 . Leg . | . . . . . . . . Wheel . | . . . . . . . . Hover . | . . . . . . . . Flight . | . . . . . . . . Utility 19 | 2 . . 2 . 9 . 6 Device 8 | 1 . . 2 . 2 . 3 Storage 4 | 1 . . . . 1 . 2 Processor 3 | . . . . . 3 . . Hackware 1 | . . . . . . . 1 Protection 3 | . . . . . 3 . . Artifact . | . . . . . . . . Weapon 18 | 2 3 . 2 2 5 2 2 Energy Gun 2 | 1 . . . . . 1 . Energy Cannon 2 | . . . 1 . . 1 . Ballistic Gun 5 | 1 1 . . . 2 . 1 Ballistic Cannon 4 | . 1 . . . 3 . . Launcher 2 | . . . . 2 . . . Special Weapon . | . . . . . . . . Impact Weapon 1 | . 1 . . . . . . Slashing Weapon 1 | . . . 1 . . . . Piercing Weapon . | . . . . . . . . Special Melee Weapon 1 | . . . . . . . 1 Unidentified Prototypes 3 | . . . 3 . . . . Parts Lost 24 | . . . . 2 7 6 9 Power 7 | . . . . . 2 2 3 Propulsion 6 | . . . . 1 . 2 3 Utility 6 | . . . . . 3 2 1 Weapon 5 | . . . . 1 2 . 2 Highest Loss Streak 4 | . . . . 2 3 2 4 To Critical Strikes 1 | . . . . . . . 1 Average Backups 8 | 4 7 8 7 7 7 9 9 Power . | . 1 1 1 1 . . 1 Propulsion 2 | 1 2 2 2 2 3 4 1 Utility 1 | . 1 2 1 2 . . 2 Weapon 3 | 1 2 3 2 2 3 4 3 Tool/Special . | . . . . . . . . Unused Backups 7 | . . . . 1 1 . 5 Power . | . . . . . . . . Propulsion 3 | . . . . 1 . . 2 Utility 4 | . . . . . 1 . 3 Weapon . | . . . . . . . . Tool/Special . | . . . . . . . . Average Slot Usage (%) 95 | . 100 100 99 95 97 94 90 Engine 8 | . 14 14 14 14 16 . . Core 8 | . . . . . 1 16 16 Treads 20 | . 28 28 28 24 18 18 16 Device 11 | . 14 14 13 14 12 7 14 Storage 10 | . 14 14 14 14 9 9 9 Processor 9 | . . . . . 9 18 11 Protection 4 | . . . . . 11 4 . Energy Gun 1 | . 2 . . . . 3 . Ballistic Gun 9 | . 19 28 27 24 7 1 5 Ballistic Cannon 5 | . 1 . . . 9 4 10 Slashing Weapon 2 | . . . . 3 . 6 . Peak Build Rating 33 | 7 7 7 14 15 30 33 31 Average Rating 19 | 5 7 7 7 9 22 29 25 On Entrance 11 | . 7 7 7 8 9 30 26 Avg Prop Armor Cover (%) 9 | . . . . . . 9 . Naked Turns . | . . . . . . . . Heaviest Build 46 | 13 14 13 13 15 46 39 41 Greatest Support 43 | 40 40 40 40 43 43 42 43 Greatest Overweight (x) 11 | 1 . . . . 1 1 11 Average Overweight (x) . | . . . . . . . . Largest Inventory Capacity 15 | 8 8 8 8 8 10 10 15 Average Capacity 9 | 7 8 8 8 8 8 10 11 Most Carried 10 | 8 8 8 8 8 10 10 10 Average Carried 8 | 4 7 8 7 7 7 9 9 Final Capacity 15 | 8 8 8 8 8 10 10 15 Final Carried 10 | 4 8 8 8 8 10 10 10 Class Distribution -------------------- 25% | Mutant 20% | Skirmisher 18% | Scavenger-Assassin 16% | Scavenger-Skirmisher 12% | Scavenger-Mutant 4% | Assassin 3% | Hacker-Skirmisher Dominant Class ---------------- Mutant | -10/Materials Mutant | -10/Mines Mutant | -10/Exiles Skirmisher | -9/Mines Skirmisher | -8/Materials Scavenger-Assassin | -8/Garrison Scavenger-Mutant | -8/Materials Resources | -11 -10 -10 -10 -9 -8 -8 -8 ----------- Run | Yrd Mat Min Exi Min Mat Gar Mat Matter Collected 2376 | 191 221 . . 229 661 747 327 Remotely 309 | . . . . . 309 . . Salvage Created 2263 | 17 197 . . 233 555 971 290 Parts 137 | 2 8 . . 10 37 60 20 Haulers Intercepted 1 | . . . . . 1 . . Recyclers Shooed 2 | . 1 . . . 1 . . Parts Field Recycled . | . . . . . . . . Retrieved Matter . | . . . . . . . . Parts Self-Destructed . | . . . . . . . . Prevented . | . . . . . . . . Parts Restored . | . . . . . . . . Kills | -11 -10 -10 -10 -9 -8 -8 -8 ------- Run | Yrd Mat Min Exi Min Mat Gar Mat Combat Hostiles Destroyed 68 | . 2 . . 19 11 30 6 Melee 14 | . . . . 2 . 12 . Guns 21 | . 2 . . 7 4 7 1 Cannons 22 | . . . . . 7 10 5 AOE 10 | . . . . 10 . . . Classes Destroyed 15 | 1 3 . . 4 4 1 2 Worker 4 | . . . . . . . 4 Builder 2 | . . . . . 2 . . Tunneler 1 | 1 . . . . . . . Hauler 1 | . . . . . 1 . . Recycler 4 | . 2 . . . 2 . . Operator 1 | . . . . . . . 1 Watcher 3 | . 1 . . . . . 2 Swarmer 16 | . 2 . . 4 . 10 . Grunt 20 | . . . . 3 2 11 4 Duelist 2 | . . . . 1 . 1 . Sentry 13 | . . . . . 7 5 1 Demolisher 1 | . . . . 1 . . . Hunter 3 | . . . . . 2 . 1 Programmer 3 | . . . . . . 3 . Assembled 10 | . . . . 10 . . . Best Kill Streak 11 | 1 3 . . 11 2 5 5 Combat Bots Only 11 | . 2 . . 11 1 5 2 Max Kills in Single Turn 4 | 1 2 . . 4 2 1 2 Gunslinging 1 | . 1 . . 1 . . . Exploded 4 | . . . . 4 . . . Melee 1 | . . . . 1 . 1 . Uniques/NPCs Destroyed . | . . . . . . . . Combat | -11 -10 -10 -10 -9 -8 -8 -8 -------- Run | Yrd Mat Min Exi Min Mat Gar Mat Hostile Shots Fired 492 | . 37 . . 76 119 170 90 Missed 126 | . 16 . . 23 28 41 18 Hits 366 | . 21 . . 53 91 129 72 Melee 5 | . . . . 5 . . . Projectile 361 | . 21 . . 48 91 129 72 AOE 3 | . . . . 3 . . . Critical Strikes 17 | . . . . 1 2 7 7 Damage Taken 4123 | . 140 . . 612 1069 1413 889 Core 677 | . 21 . . 106 147 190 213 Absorbed by Shields . | . . . . . . . . Ignored by Resistances 1181 | . 42 . . 178 302 410 249 Core Remaining (%) 74 | 100 . . . 49 . . . Volleys Fired 201 | 4 16 . . 22 67 57 35 Largest 2 | 2 2 . . 2 2 2 2 Hottest 88 | 60 50 . . 53 74 88 74 Shots Fired 358 | 8 29 . . 36 119 100 66 Gun 168 | 8 22 . . 27 48 45 18 Cannon 180 | . 7 . . . 71 55 47 Launcher 10 | . . . . 9 . . 1 Special . | . . . . . . . . Kinetic 317 | 4 29 . . 27 116 76 65 Thermal 24 | . . . . . . 24 . Explosive 10 | . . . . 9 . . 1 Electromagnetic 7 | 4 . . . . 3 . . Robot Hit Streak 36 | 6 10 . . 13 15 35 36 Robot Miss Streak 5 | . 4 . . 5 2 2 2 Penetration Max . | . . . . . . . . Secondary Targets 3 | . 1 . . 2 . . . Max Gunslinging Chain 1 | . 1 . . 1 . . . Shots Hit Robots 316 | 6 16 . . 32 93 110 59 Core Hits 119 | 1 6 . . 27 26 39 20 Critical Kills 1 | . . . . . . 1 . Critical Parts Destroyed 1 | . . . . . 1 . . Critical Strikes 18 | . 1 . . 1 2 11 3 Burn 4 | . . . . . . 4 . Destroy 2 | . . . . . 1 1 . Blast 8 | . 1 . . . 1 3 3 Sever 4 | . . . . 1 . 3 . Melee Attacks 52 | . 1 . . 4 2 39 6 Impact 1 | . 1 . . . . . . Slashing 50 | . . . . 4 2 39 5 Piercing . | . . . . . . . . Sneak Attacks 3 | . . . . . . 3 . Combat Hostiles . | . . . . . . . . Follow-up Attacks . | . . . . . . . . Damage Inflicted 7658 | 78 233 . . 1225 1635 3131 1356 Guns 1886 | 78 186 . . 253 500 625 244 Cannons 3222 | . 47 . . . 1135 1068 972 Explosions 874 | . . . . 835 . . 39 Melee 1676 | . . . . 137 . 1438 101 Ramming . | . . . . . . . . Kinetic 4665 | 39 233 . . 253 1599 1325 1216 Thermal 368 | . . . . . . 368 . Explosive 874 | . . . . 835 . . 39 Electromagnetic 75 | 39 . . . . 36 . . Impact . | . . . . . . . . Slashing 1676 | . . . . 137 . 1438 101 Piercing . | . . . . . . . . Highest Corruption 3 | . . . . . . 3 3 Average Corruption 2 | . . . . . . 2 3 Corruption Purged . | . . . . . . . . Corruption Blocked . | . . . . . . . . Effects 34 | . . . . . . 17 17 Message Errors 5 | . . . . . . 2 3 Matter Fused 5 | . . . . . . 2 3 Heat Flow Errors 6 | . . . . . . 4 2 Energy Discharges 7 | . . . . . . 4 3 Parts Fused 1 | . . . . . . 1 . Data Loss (minor) 4 | . . . . . . 2 2 Data Loss (major) 3 | . . . . . . 2 1 Misfires 1 | . . . . . . . 1 Alerts 1 | . . . . . . . 1 Weapon Failures 1 | . . . . . . . 1 Overload Shots . | . . . . . . . . Overflow Damage 89 | . . . . 22 9 27 31 Projectiles 37 | . . . . . 9 1 27 Explosions 26 | . . . . 22 . . 4 Melee 26 | . . . . . . 26 . Knockbacks 35 | . 1 . . . 12 11 11 Impact . | . . . . . . . . Kinetic 31 | . 1 . . . 11 10 9 Secondary 4 | . . . . . 1 1 2 Self-Inflicted Damage 31 | . . . . 31 . . . Shots 1 | . . . . 1 . . . Rammed . | . . . . . . . . Targets Rammed . | . . . . . . . . Kicked . | . . . . . . . . Crushed . | . . . . . . . . Highest Temperature 468 | . . . . 17 383 468 308 Average Temperature 132 | . . . . 17 126 146 108 Received Heat Transfer 1898 | . . . . 44 477 864 513 Effects 9 | . . . . . 2 7 . Shutdowns 4 | . . . . . 1 3 . Energy Bleed 2 | . . . . . 1 1 . Interference 1 | . . . . . . 1 . Short Circuit 1 | . . . . . . 1 . Damage (minor) 1 | . . . . . . 1 . Siege Activations . | . . . . . . . . Martial Activations . | . . . . . . . . Shielding Activations . | . . . . . . . . Robots Disrupted . | . . . . . . . . Combat Hostiles . | . . . . . . . . Robots Corrupted . | . . . . . . . . Combat Hostiles . | . . . . . . . . Parts Fried . | . . . . . . . . Impact Corruptions . | . . . . . . . . Robots Melted 1 | . . . . . . 1 . Combat Hostiles 1 | . . . . . . 1 . Parts Melted 2 | . . . . 1 . 1 . Heat Transferred 999 | . . . . . . 999 . Parts Sabotaged . | . . . . . . . . Parts Stolen . | . . . . . . . . Parts Stripped . | . . . . . . . . Power Chain Reactions . | . . . . . . . . Alert | -11 -10 -10 -10 -9 -8 -8 -8 ------- Run | Yrd Mat Min Exi Min Mat Gar Mat Maximum Alert Level 3 | . . . . . . 3 1 Low Security (%) 57 | 100 100 100 . 100 100 17 9 Level 1 23 | . . . . . . 30 90 Level 2 7 | . . . . . . 21 . Level 3 10 | . . . . . . 30 . Level 4 . | . . . . . . . . Level 5 . | . . . . . . . . High Security . | . . . . . . . . Max Security . | . . . . . . . . Peak Influence 851 | 5 45 . . 80 53 851 362 Initial 357 | . . . . . 21 . 357 Average 210 | . 9 . . 24 13 468 273 Influence Increases 1857 | 5 70 . . 258 382 891 251 Destroy 0b10 Robot/C 1160 | . 40 . . 180 220 600 120 Destroy 0b10 Robot/NC 80 | 5 15 . . . 25 . 35 Destroy Leader 198 | . 2 . . 30 102 20 44 Successful Hack 23 | . 4 . . . 7 . 12 Disable Machine 54 | . 9 . . 9 18 . 18 Anti-Garrison Action 150 | . . . . . . 150 . Destroy Structure 117 | . . . . 39 10 46 22 Lose Combat Pursuer 75 | . . . . . . 75 . Influence Decreases 1689 | 5 70 . . 191 449 40 934 Entered New Map 540 | . . . . . 46 . 494 Time Decay 949 | 5 70 . . 171 353 . 350 Lost Part 200 | . . . . 20 50 40 90 Squads Dispatched 6 | . . . . . 2 . 4 Investigation 2 | . . . . . 1 . 1 Extermination . | . . . . . . . . Reinforcement 3 | . . . . . 1 . 2 Assault . | . . . . . . . . Garrison 1 | . . . . . . . 1 Intercept . | . . . . . . . . Searches Triggered . | . . . . . . . . Construction Impeded 1 | . . . . . 1 . . Haulers Reinforced . | . . . . . . . . Active Scanning Responses . | . . . . . . . . Cargo Convoy Interrupts . | . . . . . . . . Stealth | -11 -10 -10 -10 -9 -8 -8 -8 --------- Run | Yrd Mat Min Exi Min Mat Gar Mat Distress Signals 4 | . . . . . 3 . 1 Communications Jammed . | . . . . . . . . Distress Signals . | . . . . . . . . Times Spotted 95 | . 7 . . 27 12 31 18 Peak Tracking Total 9 | . 4 . . 9 3 5 8 Tactical Retreats 4 | . . . . . . 4 . Traps | -11 -10 -10 -10 -9 -8 -8 -8 ------- Run | Yrd Mat Min Exi Min Mat Gar Mat Traps Triggered . | . . . . . . . . Indirectly . | . . . . . . . . Trap Hack Attempts . | . . . . . . . . Triggered . | . . . . . . . . Disarmed . | . . . . . . . . Reprogrammed . | . . . . . . . . Reused . | . . . . . . . . Traps Extracted . | . . . . . . . . Installed . | . . . . . . . . Triggered . | . . . . . . . . Machines | -11 -10 -10 -10 -9 -8 -8 -8 ---------- Run | Yrd Mat Min Exi Min Mat Gar Mat Machines Disabled 6 | . 1 . . 1 2 . 2 Max in Single Turn 1 | . 1 . . 1 1 . 1 Machines Repaired . | . . . . . . . . Machines Dismantled . | . . . . . . . . Machines Sabotaged . | . . . . . . . . Overloaded Fab Kills . | . . . . . . . . Hacking | -11 -10 -10 -10 -9 -8 -8 -8 --------- Run | Yrd Mat Min Exi Min Mat Gar Mat Machines Accessed 16 | . 1 . 2 1 7 1 4 Terminals 9 | . 1 . . . 4 1 3 Fabricators . | . . . . . . . . Repair Stations . | . . . . . . . . Recycling Units 2 | . . . . . 1 . 1 Scanalyzers 1 | . . . . . 1 . . Garrison Access 1 | . . . . . 1 . . Total Hacks 36 | . 3 . 2 1 20 2 8 Successful 21 | . 1 . 2 1 13 . 4 Failed 15 | . 2 . . . 7 2 4 Catastrophic . | . . . . . . . . Database Lockouts . | . . . . . . . . Manual 4 | . . . 1 . . . 3 Terminals 23 | . 3 . . . 12 2 6 Fabricators . | . . . . . . . . Repair Stations . | . . . . . . . . Recycling Units 5 | . . . . . 3 . 2 Scanalyzers 4 | . . . . . 4 . . Garrison Access 1 | . . . . . 1 . . Terminal Hacks 13 | . 1 . 2 1 6 . 3 Record 1 | . . . 1 . . . . Open Door 1 | . . . . 1 . . . Emergency Access Points 2 | . . . . . 2 . . Alert Level 1 | . . . . . 1 . . Dispatch Records 2 | . . . . . 1 . 1 Reinforcement Status 1 | . . . . . . . 1 Hauler Manifests 1 | . 1 . . . . . . Zone Layout 3 | . . . . . 2 . 1 Proto ID Catalog 1 | . . . 1 . . . . Fabricator Hacks . | . . . . . . . . Repair Station Hacks . | . . . . . . . . Recycling Unit Hacks 3 | . . . . . 2 . 1 Report Inventory 1 | . . . . . 1 . . Retrieve Components 2 | . . . . . 1 . 1 Scanalyzer 4 | . . . . . 4 . . Insert Component 1 | . . . . . 1 . . Analyze 2 | . . . . . 2 . . Retrieve Study 1 | . . . . . 1 . . Garrison Access Hacks 1 | . . . . . 1 . . Unlock Access 1 | . . . . . 1 . . Unauthorized Hacks . | . . . . . . . . Terminals . | . . . . . . . . Fabricators . | . . . . . . . . Repair Stations . | . . . . . . . . Recycling Units . | . . . . . . . . Scanalyzers . | . . . . . . . . Garrison Access . | . . . . . . . . Data Cores Recovered 1 | . . . . . . . 1 Used . | . . . . . . . . Hacking Detections 11 | . 1 . . . 5 1 4 Full Trace Events 4 | . . . . . 1 1 2 Feedback Events 2 | . . . . . . 1 1 Corruption 1 | . . . . . . 1 . Hackware Fried 1 | . . . . . . . 1 Feedback Blocked . | . . . . . . . . Robot Schematics Acquired . | . . . . . . . . Robots Built . | . . . . . . . . Authchips . | . . . . . . . . Time . | . . . . . . . . Total Robot Build Rating . | . . . . . . . . Part Schematics Acquired 1 | . . . . . 1 . . Parts Built . | . . . . . . . . Authchips . | . . . . . . . . Time . | . . . . . . . . Total Part Build Rating . | . . . . . . . . Part Studies Acquired 1 | . . . . . 1 . . Parts Repaired . | . . . . . . . . Time . | . . . . . . . . Parts Recycled . | . . . . . . . . Recycled Matter . | . . . . . . . . Retrieved Matter . | . . . . . . . . Retrieved Components 12 | . . . . . 2 . 10 Parts Scanalyzed 1 | . . . . . 1 . . Part Schematics Acquired 1 | . . . . . 1 . . Parts Damaged . | . . . . . . . . Bothacking | -11 -10 -10 -10 -9 -8 -8 -8 ------------ Run | Yrd Mat Min Exi Min Mat Gar Mat Used RIF Installer 2 | . . . . . . 2 . Command Fork 1 | . . . . . . 1 . Robots Hacked . | . . . . . . . . Non-combat . | . . . . . . . . Combat . | . . . . . . . . Robot Hacks Applied . | . . . . . . . . Relay Couplers Released . | . . . . . . . . Fabnet Peak Effective % . | . . . . . . . . Robots Rewired . | . . . . . . . . Allies Hacked . | . . . . . . . . Hacks Repelled . | . . . . . . . . Allies | -11 -10 -10 -10 -9 -8 -8 -8 -------- Run | Yrd Mat Min Exi Min Mat Gar Mat Total Allies . | . . . . . . . . Largest Group . | . . . . . . . . Highest-Rated Group . | . . . . . . . . Highest-Rated Ally . | . . . . . . . . Total Orders . | . . . . . . . . Ally Attacks . | . . . . . . . . Total Damage . | . . . . . . . . Kills . | . . . . . . . . Allies Corrupted . | . . . . . . . . Allies Melted . | . . . . . . . . Intel | -11 -10 -10 -10 -9 -8 -8 -8 ------- Run | Yrd Mat Min Exi Min Mat Gar Mat Active Infowar (turns) 4519 | 80 375 48 473 553 835 1493 662 Sensors 3648 | . . . 248 553 835 1493 519 Traps 662 | . . . . . . . 662 Seismic 966 | 80 375 48 225 . 238 . . Robot Analysis Total . | . . . . . . . . Derelict Logs Recovered 1 | . . . . 1 . . . Drone Launches . | . . . . . . . . Drone Recoveries . | . . . . . . . . Exploration | -11 -10 -10 -10 -9 -8 -8 -8 ------------- Run | Yrd Mat Min Exi Min Mat Gar Mat Turns Passed 5433 | 437 375 48 495 553 1077 1732 716 Spaces Moved 2402 | 119 194 31 301 255 464 743 295 Core 6 | 4 . . . . . . 2 Treads 2396 | 115 194 31 301 255 464 743 293 Legs . | . . . . . . . . Wheels . | . . . . . . . . Hover . | . . . . . . . . Flight . | . . . . . . . . Fastest Speed 50 | 50 160 160 160 160 152 152 160 Average Speed 164 | 157 160 160 160 160 159 169 177 Slowest Speed 600 | 160 160 160 160 160 212 240 600 Overloaded Moves . | . . . . . . . . Propulsion Burnouts . | . . . . . . . . Robots Hopped . | . . . . . . . . Potential Cave-ins . | . . . . . . . . Cave-ins Triggered . | . . . . . . . . Exploration Rate (%) 38 | 12 33 8 62 67 35 67 27 Regions Visited 7 Branch Regions 3 Pre-discovered Areas . | . . . . . . . . Known Exits Taken 2 | . . . . 1 1 . . Unknown Exits Taken 4 | 1 1 1 1 . . . . Scrap Searched 1 | . . . . 1 . . . Spaces Dug 4 | . . . . . 1 1 2 Terrain Destroyed 102 | . . . . 66 4 1 31 Melee 4 | . . . . . 1 1 2 Projectile 5 | . . . . . 3 . 2 AOE 93 | . . . . 66 . . 27 Terrain Rammed . | . . . . . . . . Walls Destroyed . | . . . . . . . . Machines Disabled . | . . . . . . . . Actions | -11 -10 -10 -10 -9 -8 -8 -8 --------- Run | Yrd Mat Min Exi Min Mat Gar Mat Total 3462 | 359 225 30 317 359 680 1071 421 Wait 632 | 222 5 . . 66 90 201 48 Move 2396 | 118 193 30 300 254 464 742 295 Hop . | . . . . . . . . Pick Up 39 | 8 4 . 5 3 8 4 7 Fast Attach 21 | 3 . . 1 1 9 2 5 Attach 22 | 4 . . 2 1 5 5 5 Detach 6 | . . . 1 . 1 . 4 Swap 59 | . 6 . 2 5 19 17 10 Drop 34 | . . . 6 3 15 4 6 Fire 201 | 4 16 . . 22 67 57 35 Melee 52 | . 1 . . 4 2 39 6 Ram . | . . . . . . . . Kick . | . . . . . . . . Crush . | . . . . . . . . Escape Stasis . | . . . . . . . . Rewire . | . . . . . . . . Trap . | . . . . . . . . Miscellaneous . | . . . . . . . . Route ------- -11/Scrapyard -10/Materials -10/Mines -10/Exiles -9/Mines -8/Materials (discovered 2 exits: *Fac / Gar) -8/Garrison (discovered 3 exits: *Mat x3) -8/Materials History --------- Turn | Location | Event 10 | -11/Scrapyard | Discovered new exit (range 15) 438 | -11/Scrapyard | Entered Materials 439 | -10/Materials | Build established: Mutant 775 | -10/Materials | Discovered new exit (range 16) 813 | -10/Materials | Entered Mines 853 | -10/Mines | Deemed a non-threat by the Exiles lab entrance 855 | -10/Mines | Discovered new exit (range 5) 858 | -10/Mines | Met a Derelict bent on vengeance 861 | -10/Mines | Entered Exiles 901 | -10/Exiles | Met 8R-AWN 929 | -10/Exiles | Met EX-HEX 988 | -10/Exiles | Met EX-BIN 1017 | -10/Exiles | Aligned with FarCom system 1018 | -10/Exiles | Given EX-Vault access code 1076 | -10/Exiles | Opened EX-Vault 1085 | -10/Exiles | Found Prototype Device 1086 | -10/Exiles | Identified Supersonic Drone Bay 1095 | -10/Exiles | Found Prototype Slashing Weapon 1096 | -10/Exiles | Identified Longsword +1 1099 | -10/Exiles | Found Prototype Energy Cannon 1099 | -10/Exiles | Identified Gui. Plasma Cannon 1156 | -10/Exiles | Exiles lab attacked by MAIN.C 1342 | -10/Exiles | Discovered new exit (range 11) 1356 | -10/Exiles | Left Exiles lab with Longsword +1 1356 | -10/Exiles | Entered Mines 1365 | -9/Mines | Met a Derelict who couldn't figure out how to use a Trap Extractor 1513 | -9/Mines | Assembled infested the area 1518 | -9/Mines | Assisted by a Guerilla fighting off Assembled 1580 | -9/Mines | Destroyed 11 combat bots 1645 | -9/Mines | Build established: Skirmisher 1707 | -9/Mines | Identified exit to Materials 1868 | -9/Mines | Core integrity fell below 50% 1909 | -9/Mines | Entered Materials 1909 | -8/Materials | Evolved 4 slots: Power x1, Utility x3 2183 | -8/Materials | Lost 3 parts (2u1w) 2506 | -8/Materials | Discovered new exit (range 5) 2511 | -8/Materials | Identified exit to Factory 2986 | -8/Materials | Identified exit to Garrison 2986 | -8/Materials | Entered Garrison 3068 | -8/Garrison | Triggered checkpoint 3210 | -8/Garrison | Build established: Scavenger-Skirmisher 3547 | -8/Garrison | Discovered new exit (range 11) 3549 | -8/Garrison | Build established: Scavenger-Assassin 3619 | -8/Garrison | Identified exit to Materials 3656 | -8/Garrison | Triggered checkpoint 3934 | -8/Garrison | Core integrity fell below 50% 4088 | -8/Garrison | Triggered checkpoint 4119 | -8/Garrison | Discovered exit to Materials (range 7) 4198 | -8/Garrison | Triggered checkpoint 4254 | -8/Garrison | Triggered checkpoint 4318 | -8/Garrison | Triggered checkpoint 4379 | -8/Garrison | Discovered exit to Materials (range 12) 4426 | -8/Garrison | Triggered checkpoint 4525 | -8/Garrison | Installed Relay Interface Framework 4674 | -8/Garrison | Expanded RIF knowledge: Command Fork 4718 | -8/Garrison | Entered Materials 4793 | -8/Materials | Build established: Scavenger-Mutant 5076 | -8/Materials | Hacking Suite fried by hacking feedback 5391 | -8/Materials | Garrison activated, responded to threat 5423 | -8/Materials | Core integrity fell below 20% 5434 | -8/Materials | Destroyed by Y-45 Defender with Beam Rifle Last Messages --------------- K-01 Serf collects debris. O-24 Administrator calls for garrison support. ALERT: Activating Garrison Access M001. O-24 Administrator knocked back. Detecting nearby Garrison Access. ALERT: Hostiles spotted, dispatching reinforcements to Terminal M005. Critical hit (Burn: +37). G-47 Trooper knocked back. System corrupted: Heat flow error (+183). ALERT: Hostiles spotted, dispatching reinforcements to Terminal M006. Destroyed Lgt. Nuclear Core. G-47 Trooper destroyed. Lgt. Nuclear Core destroyed. Lgt. Treads destroyed. Critical hit (Burn: +37). Minigun destroyed. Lgt. Nuclear Core destroyed. Acquired 5 matter. Map ----- +----------------------------------------------------+ | | | | | | | | | | | | | | | | | ?????????????????????????????????????????????????? | | ?????????????????????????????????????????????????? | | ?????????????????????????????????????????????????? | | ?????????????????????????????????????????????????? | | ?????????????????????????????????????????????????? | | ?????????????????????????????????????????????????? | | ?????????????????????????????????????????????????? | | ?????????????????????????????????????????????????? | | ?????????????????????????????#+??????????????????? | | ????????????????????????????? ??????????????????? | | ????????????????????????k???? ??????????????????? | | ????????????????????????#####+#####??###?????????? | | ???????????#+#######???# !# ##???????? | | ??????????? #??????## """ ] %# " ##???????? | | ??????????? #????#### """ ![+ "G" ##???????? | | ???????????""" a###### "; "S g ![# " " ##???????? | | ???????????""" # ## """g %%# #????????? | | ????????" """ # """ ##@Y""g %# #????????? | | ??????? k# "Y" ## Yg # #????????? | | ?????????? a ## !g g # #????????? | | ???????????""" # ]! ############ #????????? | | ???????????""" # !! k#??????????# #????????? | | ?????????? """ #####/##??????????# #????????? | | ??????????? #???# #???????????# #????????? | | ??????????? a #???# ###########?###Y###????????? | | ???????????""" #???# ## #???###??????????? | | ???????????"""g ##### ## """ = #????????????????? | | ????????" """ # "T" #????????????????? | | ?????? # #????????????????? | | ?????? # #????????????????? | | ???????############# # """ #????????????????? | | ???????????????????# # """ #????????????????? | | ???????????????????# # """ #????????????????? | | ???????????????##### + #????????????????? | | ???????????????##! ##########????????#???????? | | ???????????????#! #?########????????#???????? | | ???????????????# #?# #????????#???????? | | ???????????????#! #?#""" #????????#???????? | | ???????????????#! #?#""" #????????#???????? | | ???????????????##! #?#""" ##########???????? | | ??###########??##### #?# # #???????? | | ??# * ] ######## #?# # #???????? | +----------------------------------------------------+ Best States ------------- Heat Dissipation 31 Energy Generation 23 Energy Capacity 305 Matter Stores 300 Matter Capacity 300 Sight Range 16 Robot Scan Range 15 Terrain Scan Density 85 Armor Coverage 450 Resistance: KI 20 Resistance: TH 20 Resistance: EX 20 Resistance: EM 20 Resistance: I 20 Resistance: S 20 Resistance: P 20 Evasion (%) 40 Recoil Reduction 2 Offensive Hacking 20 Authchip Count 1 Item Schematics ----------------- Imp. Treads | -8/Materials | Scanalyzed Robot Schematics ------------------ None Fabricated ------------ Nothing Repaired ---------- Nothing Studied --------- Adv. Treads | -8/Materials | Hacked Alien Tech Used ----------------- None Achievements -------------- You Will Be Upgraded Challenges ------------ None Game ------ Seed ThunderServoBrace Manual? 0 Play Time 00:49:34 Cumulative 16.9 hours Start 2025.11.17 @ 20:15:01 End 2025.11.18 @ 01:43:21 Sessions 5 Manual Loads 0 Difficulty Adventurer Special Mode None Game No. 32 Rogue 1 Adventurer 31 Explorer 0 Win Type - Total 0 Types 0/0/0/0/0/0/0/0/0/0 Lore% 13 Gallery% 21 Achievement% 18 Wizard Run 0 Options --------- Layout 2 ASCII 0 Keyboard 0 Movement Mouse Keybinds 0 Fullscreen 1 Font 24/Smallcaps Map View 50x44 Zoom Use 0% Tactical HUD 0 Map Filters NONE Filters NONE Steam 1 RUN: c3810f43-ccc9-4ac6-8ffa-df9cc73cc3f4